fUSD/lending_fUSD_20240802
["ID","MTS","AMOUNT","RATE_DAILY","PERIOD"]
[333908215,1722623593610,227.58642964,9e-05,2]
[333908216,1722623597688,1284.13188333,9e-05,2]
[333908217,1722623599260,76.53379604,9e-05,2]
[333908218,1722623599288,690.68785081,9e-05,2]
[333908219,1722623599631,425.14099926,9e-05,2]
[333908220,1722623600662,903.40439442,9e-05,2]
[333908221,1722623600691,3018.40628509,9e-05,2]
[333908222,1722623600717,5342.57506985,9e-05,2]
[333908223,1722623602495,9264.38574936,9e-05,2]
[333908224,1722623615201,183663.29057438,9e-05,2]
[333908225,1722623618873,200.0,0.00027,120]
[333908226,1722623633160,363.7477789,9e-05,2]
[333908231,1722623661762,692.69113318,9e-05,2]
[333908232,1722623666684,1222.86024952,9e-05,2]
[333908233,1722623667802,790.31510471,9e-05,2]
[333908234,1722623679851,227.58642964,9e-05,2]
[333908235,1722623682728,1267.97582624,9e-05,2]
[333908236,1722623683683,155.0,9e-05,10]
[333908238,1722623688215,1284.13188333,9e-05,2]
[333908240,1722623712636,1267.97582624,9e-05,2]
[333908241,1722623713797,155.0,9e-05,10]
[333908242,1722623722028,183663.29057438,9e-05,2]
[333908243,1722623727769,9264.38574936,9e-05,2]
[333908244,1722623757765,511.65559719,9e-05,2]
[333908245,1722623763588,227.58642964,9e-05,2]
[333908246,1722623773690,1144.00340017,9e-05,2]
[333908247,1722623783137,1222.86024952,9e-05,2]
[333908252,1722623813281,4788.63778557,9e-05,2]
[333908253,1722623843717,423.87785519,9e-05,2]
[333908254,1722623863978,227.58642964,9e-05,2]
[333908255,1722623874686,733.31679121,9e-05,2]
[333908256,1722623977183,227.58642964,9e-05,2]
[333908257,1722623992123,227.58642964,9e-05,2]
[333908258,1722624073801,-181.15430097,9.964e-05,2]
[333908259,1722624073822,-585.0,0.00010064,2]
[333908260,1722624073844,-4575.10709781,0.00010065,2]
[333908261,1722624073868,-300.0,0.00010808,2]
[333908262,1722624073889,-5566.3587,0.00010809,2]
[333908263,1722624073911,-9479.84141601,0.00010899,2]
[333908264,1722624073932,-150.0,0.00010899,2]
[333908265,1722624073953,-388.50516129,0.000109,2]
[333908266,1722624073973,-490.9518,0.000109,2]
[333908267,1722624073994,-169.27176966,0.000109,2]
[333908268,1722624074019,-243.87495174,0.000109,2]
[333908269,1722624074039,-1395.59529834,0.000109,2]
[333908270,1722624074060,-1248.22847022,0.000109,2]
[333908271,1722624074082,-338.0336293,0.000109,2]
[333908272,1722624074110,-758.59968379,0.00010908,2]
[333908273,1722624074137,-649.20351135,0.00010909,2]
[333908274,1722624074159,-792.26305853,0.00010909,2]
[333908275,1722624074180,-467.79574608,0.00010909,2]
[333908276,1722624074202,-1715.21540491,0.00010909,2]
[333908294,1722624591402,578.92,0.00025,60]
[333908309,1722624633381,-170.13,0.00010786,2]
[333908310,1722624633392,-150.0,0.00010877,2]
[333908311,1722624633402,-7034.25,0.000109,2]
[333908312,1722624633496,-1497.6072744,0.000109,2]
[333908313,1722624633506,-6171.56870791,0.000109,2]
[333908314,1722624633516,-930.39686556,0.000109,2]
[333908315,1722624633526,-832.15231348,0.000109,2]
[333908316,1722624633535,-64.02937051,0.000109,2]
[333908317,1722624633547,-98.55393065,0.000109,2]
[333908318,1722624633558,-589.88018935,0.00010909,2]
[333908319,1722624633571,-3297.6944,0.00010909,2]
[333908374,1722624638269,-255.3477856,0.00010909,2]
[333908375,1722624638740,-1508.28668841,0.00010909,2]
[333908377,1722624638752,-2505.08940024,0.00010909,2]
[333908380,1722624638819,-330.200041,0.00010909,2]
[333908381,1722624638832,-676.36118869,0.00010909,2]
[333908382,1722624638842,-212.56006731,0.00010909,2]
[333908383,1722624638854,-484.69898026,0.00010909,2]
[333908384,1722624638863,-207.25644164,0.00010909,2]
[333908385,1722624638874,-158.84273734,0.00010909,2]
[333908386,1722624638884,-349.35447946,0.00010909,2]
[333908387,1722624638894,-475.70637676,0.00010909,2]
[333908388,1722624638904,-2727.16525437,0.00010909,2]
[333908389,1722624638914,-379.95855132,0.00010909,2]
[333908390,1722624638923,-372.98373758,0.00010909,2]
[333908391,1722624638934,-308.97616233,0.00010909,2]
[333908392,1722624638945,-2383.95531201,0.00010909,2]
[333908393,1722624638957,-891.68121634,0.00010909,2]
[333908394,1722624638969,-188.0,0.00010909,2]
[333908395,1722624638979,-526.04256656,0.00010909,2]
[333908396,1722624638989,-227.58642964,0.00010909,2]
[333908397,1722624638998,-588.05582023,0.00010909,2]
[333908398,1722624639008,-1522.476,0.00010909,2]
[333908399,1722624639017,-42896.99867813,0.00010909,2]
[333908400,1722624639029,-20158.1368,0.00010909,2]
[333908401,1722624639040,-1800.1,0.00010909,2]
[333908402,1722624639161,-1138.64490897,0.00010909,2]
[333908403,1722624639172,-835.77,0.00010909,2]
[333908411,1722624640737,-660.75,0.00010909,2]
[333908412,1722624640750,-332.7324,0.00010909,2]
[333908416,1722624640938,-293.04699676,0.00010909,2]
[333908417,1722624640951,-336.861378,0.00010909,2]
[333908418,1722624641027,-3483.37846113,0.00010909,2]
[333908419,1722624641041,-5900.0,0.00010909,2]
[333908420,1722624641056,-2088.87673225,0.00010909,2]
[333908421,1722624641069,-13200.0,0.00010909,2]
[333908422,1722624641082,-267.97080576,0.00010909,2]
[333908423,1722624641102,-4620.65287364,0.00010909,2]
[333908424,1722624641123,-56788.89054981,0.00010909,2]
[333908425,1722624641134,-2796283.95368796,0.00011,2]
[333908426,1722624641144,-288574.79614473,0.00011,2]
[333908427,1722624641155,-1115.39921586,0.00011,2]
[333908428,1722624641166,-8460.98,0.00011,2]
[333908429,1722624641177,-2051.84021,0.00011,2]
[333908430,1722624641187,-5287.8617874,0.00011089,2]
[333908431,1722624641198,-3808.20460502,0.00011105,2]
[333908432,1722624641208,-5448.41060423,0.00011105,2]
[333908433,1722624641218,-215.92897582,0.00011105,2]
[333908434,1722624641228,-499.99,0.00011172,2]
[333908435,1722624641238,-893.25,0.00011632,2]
[333908436,1722624641248,-8531.8572744,0.00011656,2]
[333908437,1722624641258,-6171.56870789,0.00011656,2]
[333908438,1722624641268,-157.04,0.00011656,2]
[333908439,1722624641277,-550.0,0.00012,2]
[333908440,1722624641287,-8531.8572744,0.00012413,2]
[333908441,1722624641298,-6171.56870789,0.00012413,2]
[333908442,1722624641308,-388.50516126,0.00012462,2]
[333908443,1722624641318,-11436.11338091,0.000125,2]
[333908444,1722624641329,-1132.0,0.00012713,2]
[333908445,1722624641341,-250.0,0.00012862,2]
[333908446,1722624641360,-159.71,0.00013007,2]
[333908447,1722624641371,-168.83,0.00013041,2]
[333908448,1722624641380,-200.0,0.00013048,2]
[333908449,1722624641389,-676.46383331,0.00013066,2]
[333908450,1722624641399,-799.78,0.00013088,2]
[333908451,1722624641408,-800.0,0.00013116,2]
[333908452,1722624641420,-8531.8572744,0.00013169,2]
[333908453,1722624641430,-6171.56870789,0.00013169,2]
[333908454,1722624641439,-250.0,0.00013197,2]
[333908455,1722624641449,-150.0,0.00013362,2]
[333908456,1722624641459,-4102.39165468,0.00013378,2]
[333908457,1722624641468,-4102.39165468,0.00013378,2]
[333908458,1722624641478,-23900.0,0.00013396,2]
[333908459,1722624641488,-240.29,0.00013483,2]
[333908460,1722624641498,-3370.76,0.0001355,2]
[333908461,1722624641509,-1500.0,0.0001355,5]
[333908462,1722624641519,-1390.82835558,0.000136,2]
[333908463,1722624641528,-502.09888376,0.000138,2]
[333908464,1722624641538,-2500.4353,0.00013889,2]
[333908465,1722624641548,-893.25,0.00013896,2]
[333908466,1722624641558,-8531.8572744,0.00013926,2]
[333908467,1722624641569,-6171.56870789,0.00013926,2]
[333908468,1722624641580,-542.47,0.00013973,2]
[333908469,1722624641590,-150.41,0.00013973,2]
[333908470,1722624641606,-600.0,0.00014,2]
[333908471,1722624641615,-388.50516126,0.00014024,2]
[333908472,1722624641625,-289.14,0.00014151,2]
[333908473,1722624641634,-289.14,0.00014155,2]
[333908474,1722624641644,-289.14,0.00014159,2]
[333908475,1722624641654,-289.14,0.00014163,2]
[333908476,1722624641664,-289.14,0.00014166,2]
[333908477,1722624641674,-930.39686556,0.00014167,2]
[333908478,1722624641684,-832.15231346,0.00014167,2]
[333908479,1722624641694,-162.58330114,0.00014167,2]
[333908480,1722624641704,-289.14,0.0001417,2]
[333908481,1722624641714,-289.14,0.00014174,2]
[333908482,1722624641724,-289.14,0.00014178,2]
[333908483,1722624641733,-289.14,0.00014181,2]
[333908484,1722624641743,-289.14,0.00014185,2]
[333908485,1722624641753,-289.14,0.00014189,2]
[333908486,1722624641762,-289.14,0.00014192,2]
[333908487,1722624641772,-289.14,0.00014196,2]
[333908488,1722624641782,-289.14,0.000142,2]
[333908489,1722624641791,-289.14,0.00014204,2]
[333908490,1722624641801,-289.14,0.00014207,2]
[333908491,1722624641812,-289.14,0.00014211,2]
[333908492,1722624641822,-289.14,0.00014215,2]
[333908493,1722624641832,-289.14,0.00014219,2]
[333908494,1722624641841,-289.14,0.00014222,2]
[333908495,1722624641860,-169.27176964,0.00014304,2]
[333908496,1722624641870,-159.71,0.00014633,2]
[333908497,1722624641880,-200.0,0.00014679,2]
[333908498,1722624641890,-8531.8572744,0.00014682,2]
[333908499,1722624641900,-6171.56870789,0.00014682,2]
[333908500,1722624641911,-151.0,0.00014755,2]
[333908501,1722624641920,-800.0,0.00014755,2]
[333908502,1722624641930,-209.93309956,0.00014899,2]
[333908503,1722624641940,-306.51095069,0.00014999,2]
[333908504,1722624641949,-4875.47509517,0.00015,7]
[333908505,1722624641959,-151.0,0.00015,2]
[333908506,1722624641968,-151.0,0.00015,2]
[333908507,1722624641978,-151.0,0.00015,2]
[333908508,1722624641987,-151.0,0.00015,2]
[333908509,1722624641996,-18212.0,0.00015052,2]
[333908510,1722624642005,-240.29,0.00015168,2]
[333908511,1722624642014,-2181.0,0.000152,2]
[333908512,1722624642024,-151.0,0.00015408,2]
[333908513,1722624642034,-8531.8572744,0.00015439,2]
[333908514,1722624642043,-6171.56870789,0.00015439,2]
[333908515,1722624642054,-388.50516126,0.00015586,2]
[333908516,1722624642063,-167.0,0.00015831,2]
[333908517,1722624642073,-1500.0,0.00015998,2]
[333908518,1722624642083,-650.0,0.00016,2]
[333908519,1722624642093,-2051.84022,0.00016,2]
[333908520,1722624642110,-1494.17896266,0.00016017,2]
[333908521,1722624642119,-1500.0,0.0001607,2]
[333908522,1722624642129,-1500.0,0.00016129,2]
[333908523,1722624642138,-893.25,0.0001616,2]
[333908524,1722624642147,-150.0,0.0001616,2]
[333908525,1722624642156,-150.0,0.0001616,2]
[333908526,1722624642166,-150.0,0.00016161,2]
[333908527,1722624642175,-150.0,0.00016162,2]
[333908528,1722624642185,-150.0,0.00016162,2]
[333908529,1722624642195,-150.0,0.00016162,2]
[333908530,1722624642205,-150.0,0.00016167,2]
[333908531,1722624642215,-150.0,0.00016169,2]
[333908532,1722624642225,-150.0,0.00016172,2]
[333908533,1722624642235,-1500.0,0.00016178,2]
[333908534,1722624642245,-150.38287211,0.00016178,2]
[333908535,1722624642255,-150.0,0.00016179,2]
[333908536,1722624642266,-150.0,0.0001618,2]
[333908537,1722624642276,-150.0,0.00016184,2]
[333908538,1722624642286,-150.0,0.00016185,2]
[333908539,1722624642296,-150.0,0.00016188,2]
[333908540,1722624642307,-150.0,0.00016189,2]
[333908541,1722624642317,-1500.0,0.00016192,2]
[333908542,1722624642331,-150.0,0.00016194,2]
[333908543,1722624642341,-150.0,0.00016195,2]
[333908544,1722624642366,-8531.8572744,0.00016195,2]
[333908545,1722624642378,-6171.56870789,0.00016195,2]
[333908546,1722624642389,-150.0,0.00016196,2]
[333908547,1722624642400,-150.0,0.00016196,2]
[333908548,1722624642413,-150.0,0.00016198,2]
[333908549,1722624642426,-150.0,0.00016201,2]
[333908550,1722624642437,-150.0,0.00016202,2]
[333908551,1722624642447,-300.0,0.00016204,2]
[333908552,1722624642458,-150.0,0.00016204,2]
[333908553,1722624642470,-150.0,0.00016208,2]
[333908554,1722624642481,-150.0,0.00016214,2]
[333908555,1722624642492,-150.0,0.00016215,2]
[333908556,1722624642502,-150.0,0.00016218,2]
[333908557,1722624642514,-150.0,0.00016218,2]
[333908558,1722624642528,-150.0,0.00016218,2]
[333908559,1722624642539,-150.0,0.00016218,2]
[333908560,1722624642550,-150.0,0.00016219,2]
[333908561,1722624642561,-1500.0,0.00016219,2]
[333908562,1722624642572,-150.0,0.00016221,2]
[333908563,1722624642583,-150.0,0.00016221,2]
[333908564,1722624642593,-150.0,0.00016224,2]
[333908565,1722624642604,-150.0,0.00016227,2]
[333908566,1722624642615,-150.0,0.00016231,2]
[333908567,1722624642626,-150.0,0.00016232,2]
[333908568,1722624642637,-150.0,0.00016242,2]
[333908569,1722624642647,-150.0,0.00016243,2]
[333908570,1722624642658,-150.0,0.00016244,2]
[333908571,1722624642668,-1500.0,0.00016247,2]
[333908572,1722624642678,-150.0,0.0001625,2]
[333908573,1722624642688,-150.0,0.00016252,2]
[333908574,1722624642698,-150.0,0.00016256,2]
[333908575,1722624642709,-159.71,0.00016259,2]
[333908576,1722624642719,-500.0,0.00016259,2]
[333908577,1722624642729,-150.0,0.00016262,2]
[333908578,1722624642739,-150.0,0.00016262,2]
[333908579,1722624642749,-150.0,0.00016263,2]
[333908580,1722624642760,-150.0,0.00016267,2]
[333908581,1722624642769,-5216.85075243,0.00016272,2]
[333908582,1722624642779,-150.0,0.00016276,2]
[333908583,1722624642789,-150.0,0.00016278,2]
[333908584,1722624642799,-300.0,0.00016281,2]
[333908585,1722624642808,-150.0,0.00016282,2]
[333908586,1722624642818,-150.0,0.00016283,2]
[333908587,1722624642828,-300.0,0.00016284,2]
[333908588,1722624642838,-150.0,0.00016285,2]
[333908589,1722624642856,-150.0,0.00016285,2]
[333908590,1722624642871,-150.0,0.00016288,2]
[333908591,1722624642882,-300.0,0.00016288,2]
[333908592,1722624642893,-150.0,0.00016289,2]
[333908593,1722624642905,-150.0,0.00016293,2]
[333908594,1722624642916,-150.0,0.00016294,2]
[333908595,1722624642926,-150.0,0.00016294,2]
[333908596,1722624642937,-150.0,0.00016296,2]
[333908597,1722624642948,-150.0,0.00016298,2]
[333908598,1722624642959,-1500.0,0.00016299,2]
[333908599,1722624642970,-20944.24846,0.000163,2]
[333908600,1722624642981,-150.0,0.000163,2]
[333908601,1722624642991,-1500.0,0.00016305,2]
[333908602,1722624643001,-150.0,0.00016307,2]
[333908603,1722624643011,-150.0,0.00016307,2]
[333908604,1722624643021,-150.0,0.00016307,2]
[333908605,1722624643031,-150.0,0.00016308,2]
[333908606,1722624643041,-150.0,0.00016309,2]
[333908607,1722624643052,-200.0,0.0001631,2]
[333908608,1722624643062,-150.0,0.00016315,2]
[333908609,1722624643073,-150.0,0.00016316,2]
[333908610,1722624643083,-150.0,0.00016318,2]
[333908611,1722624643093,-150.0,0.0001632,2]
[333908612,1722624643103,-150.0,0.0001632,2]
[333908614,1722624643113,-150.0,0.00016324,2]
[333908615,1722624643122,-150.0,0.00016326,2]
[333908616,1722624643133,-150.0,0.00016329,2]
[333908617,1722624643143,-1500.0,0.0001633,2]
[333908618,1722624643152,-150.0,0.00016332,2]
[333908620,1722624643161,-1500.0,0.00016332,2]
[333908622,1722624643170,-150.0,0.00016332,2]
[333908624,1722624643180,-300.0,0.00016333,2]
[333908626,1722624643190,-150.0,0.00016333,2]
[333908628,1722624643200,-150.0,0.00016336,2]
[333908629,1722624643209,-150.0,0.00016336,2]
[333908630,1722624643219,-300.0,0.00016336,2]
[333908631,1722624643228,-150.0,0.00016338,2]
[333908632,1722624643238,-150.0,0.00016343,2]
[333908633,1722624643247,-150.0,0.00016344,2]
[333908634,1722624643256,-150.0,0.00016345,2]
[333908635,1722624643266,-150.0,0.00016346,2]
[333908637,1722624643276,-150.0,0.00016346,2]
[333908639,1722624643285,-961.93213714,0.00016346,2]
[333908642,1722624643294,-150.0,0.00016347,2]
[333908644,1722624643304,-150.0,0.00016348,2]
[333908646,1722624643313,-150.0,0.00016349,2]
[333908648,1722624643322,-150.0,0.00016349,2]
[333908651,1722624643331,-150.0,0.00016349,2]
[333908653,1722624643341,-150.0,0.0001635,2]
[333908655,1722624643367,-150.0,0.00016356,2]
[333908657,1722624643377,-150.0,0.00016359,2]
[333908659,1722624643386,-150.0,0.00016361,2]
[333908661,1722624643396,-1500.0,0.00016363,2]
[333908663,1722624643407,-150.0,0.00016364,2]
[333908665,1722624643416,-1500.0,0.00016365,2]
[333908667,1722624643428,-150.0,0.00016366,2]
[333908669,1722624643437,-150.0,0.00016369,2]
[333908671,1722624643447,-150.0,0.00016371,2]
[333908673,1722624643457,-150.0,0.00016372,2]
[333908674,1722624643467,-150.0,0.00016375,2]
[333908675,1722624643477,-150.0,0.00016378,2]
[333908676,1722624643487,-150.0,0.00016378,2]
[333908678,1722624643496,-150.0,0.00016382,2]
[333908680,1722624643506,-150.0,0.00016383,2]
[333908683,1722624643516,-150.0,0.00016385,2]
[333908684,1722624643525,-150.0,0.00016387,2]
[333908685,1722624643534,-150.0,0.00016387,2]
[333908686,1722624643544,-150.0,0.00016388,2]
[333908687,1722624643553,-800.0,0.00016395,2]
[333908688,1722624643563,-150.0,0.00016395,2]
[333908689,1722624643572,-150.0,0.00016398,2]
[333908690,1722624643582,-150.0,0.000164,2]
[333908691,1722624643591,-150.0,0.00016403,2]
[333908692,1722624643600,-150.0,0.00016404,2]
[333908693,1722624643610,-300.0,0.00016405,2]
[333908694,1722624643619,-150.0,0.00016409,2]
[333908695,1722624643628,-300.0,0.00016412,2]
[333908696,1722624643638,-150.0,0.00016414,2]
[333908697,1722624643647,-150.0,0.00016415,2]
[333908698,1722624643656,-150.0,0.00016417,2]
[333908699,1722624643665,-150.0,0.00016419,2]
[333908700,1722624643674,-300.0,0.00016419,2]
[333908701,1722624643684,-150.0,0.00016423,2]
[333908702,1722624643693,-150.0,0.00016423,2]
[333908703,1722624643702,-155.0,0.00016425,2]
[333908704,1722624643712,-150.0,0.00016429,2]
[333908705,1722624643721,-150.0,0.00016432,2]
[333908706,1722624643731,-150.01,0.00016437,2]
[333908707,1722624643740,-3996.92869508,0.00016437,2]
[333908708,1722624643750,-500.0,0.00016438,2]
[333908709,1722624643760,-500.0,0.00016438,2]
[333908710,1722624643769,-500.0,0.00016438,2]
[333908711,1722624643779,-500.0,0.00016438,2]
[333908712,1722624643789,-500.0,0.00016438,2]
[333908713,1722624643798,-500.0,0.00016438,2]
[333908714,1722624643807,-500.0,0.00016438,2]
[333908715,1722624643817,-500.0,0.00016438,2]
[333908716,1722624643827,-500.0,0.00016438,2]
[333908717,1722624643836,-500.0,0.00016438,2]
[333908718,1722624643854,-500.0,0.00016438,2]
[333908719,1722624643870,-500.0,0.00016438,2]
[333908720,1722624643880,-500.0,0.00016438,2]
[333908721,1722624643890,-500.0,0.00016438,2]
[333908722,1722624643899,-500.0,0.00016438,2]
[333908723,1722624643908,-500.0,0.00016438,2]
[333908724,1722624643918,-500.0,0.00016438,2]
[333908725,1722624643928,-500.0,0.00016438,2]
[333908726,1722624643938,-500.0,0.00016438,2]
[333908727,1722624643948,-249.69309198,0.00016438,2]
[333908728,1722624643957,-516.00847283,0.00016438,2]
[333908729,1722624643966,-587.6464833,0.00016438,2]
[333908730,1722624643976,-500.0,0.00016438,2]
[333908731,1722624643985,-500.0,0.00016438,2]
[333908732,1722624643994,-500.0,0.00016438,2]
[333908734,1722624644004,-500.0,0.00016438,2]
[333908736,1722624644013,-500.0,0.00016438,2]
[333908737,1722624644022,-500.0,0.00016438,2]
[333908739,1722624644031,-300.0,0.00016438,2]
[333908741,1722624644041,-288.24512665,0.00016438,2]
[333908743,1722624644050,-1973.27,0.00016438,2]
[333908745,1722624644060,-2916.72,0.00016438,2]
[333908747,1722624644070,-500.0,0.00016438,2]
[333908749,1722624644079,-500.0,0.00016438,2]
[333908751,1722624644089,-500.0,0.00016438,2]
[333908752,1722624644107,-1855.97,0.00016438,2]
[333908753,1722624644117,-934.15,0.00016438,2]
[333908754,1722624644126,-500.0,0.00016438,2]
[333908755,1722624644136,-1848.29,0.00016438,2]
[333908756,1722624644146,-500.0,0.00016438,2]
[333908757,1722624644156,-1132.39,0.00016438,2]
[333908759,1722624644166,-500.0,0.00016438,2]
[333908761,1722624644176,-500.0,0.00016438,2]
[333908763,1722624644186,-1554.64,0.00016438,2]
[333908764,1722624644196,-500.0,0.00016438,2]
[333908765,1722624644205,-2501.38,0.00016438,2]
[333908766,1722624644215,-565.11,0.00016438,2]
[333908767,1722624644225,-649.72,0.00016438,2]
[333908768,1722624644234,-500.0,0.00016438,2]
[333908769,1722624644243,-767.84,0.00016438,2]
[333908770,1722624644254,-860.84,0.00016438,2]
[333908771,1722624644264,-603.77,0.00016438,2]
[333908772,1722624644275,-535.21,0.00016438,2]
[333908773,1722624644285,-500.0,0.00016438,2]
[333908774,1722624644295,-1385.84,0.00016438,2]
[333908775,1722624644305,-500.0,0.00016438,2]
[333908776,1722624644314,-500.0,0.00016438,2]
[333908777,1722624644325,-500.0,0.00016438,2]
[333908778,1722624644334,-500.0,0.00016438,2]
[333908779,1722624644344,-184.61494957,0.00016438,2]
[333908780,1722624644363,-500.0,0.00016438,2]
[333908781,1722624644374,-500.0,0.00016438,2]
[333908782,1722624644384,-839.56,0.00016438,2]
[333908783,1722624644394,-1169.01,0.00016438,2]
[333908784,1722624644404,-531.91,0.00016438,2]
[333908785,1722624644415,-1353.81,0.00016438,2]
[333908786,1722624644425,-675.93,0.00016438,2]
[333908787,1722624644434,-631.13,0.00016438,2]
[333908788,1722624644444,-500.0,0.00016438,2]
[333908789,1722624644454,-500.0,0.00016438,2]
[333908790,1722624644463,-1027.13,0.00016438,2]
[333908791,1722624644472,-500.0,0.00016438,2]
[333908792,1722624644482,-1006.69,0.00016438,2]
[333908793,1722624644491,-1013.71,0.00016438,2]
[333908794,1722624644500,-821.54,0.00016438,2]
[333908795,1722624644510,-500.0,0.00016438,2]
[333908796,1722624644520,-631.82,0.00016438,2]
[333908797,1722624644529,-500.0,0.00016438,2]
[333908798,1722624644539,-500.0,0.00016438,2]
[333908799,1722624644549,-500.0,0.00016438,2]
[333908800,1722624644558,-500.0,0.00016438,2]
[333908801,1722624644568,-1059.61,0.00016438,2]
[333908802,1722624644578,-500.0,0.00016438,2]
[333908803,1722624644587,-779.54,0.00016438,2]
[333908804,1722624644597,-1234.31,0.00016438,2]
[333908805,1722624644615,-597.19,0.00016438,2]
[333908806,1722624644627,-806.72,0.00016438,2]
[333908807,1722624644637,-500.0,0.00016438,2]
[333908808,1722624644646,-848.08,0.00016438,2]
[333908809,1722624644656,-531.59,0.00016438,2]
[333908810,1722624644665,-500.0,0.00016438,2]
[333908811,1722624644674,-964.46,0.00016438,2]
[333908812,1722624644684,-2000.0,0.00016438,2]
[333908813,1722624644693,-1434.92,0.00016438,2]
[333908814,1722624644703,-500.0,0.00016438,2]
[333908815,1722624644712,-500.0,0.00016438,2]
[333908816,1722624644722,-631.08,0.00016438,2]
[333908817,1722624644731,-1198.72,0.00016438,2]
[333908818,1722624644740,-1666.93,0.00016438,2]
[333908819,1722624644750,-500.0,0.00016438,2]
[333908820,1722624644760,-500.0,0.00016438,2]
[333908821,1722624644769,-591.83,0.00016438,2]
[333908822,1722624644779,-500.0,0.00016438,2]
[333908823,1722624644788,-556.13,0.00016438,2]
[333908824,1722624644798,-2285.3,0.00016438,2]
[333908825,1722624644807,-500.0,0.00016438,2]
[333908826,1722624644817,-2019.77,0.00016438,2]
[333908827,1722624644827,-723.04,0.00016438,2]
[333908828,1722624644836,-500.0,0.00016438,2]
[333908829,1722624644846,-500.0,0.00016438,2]
[333908830,1722624644864,-500.0,0.00016438,2]
[333908831,1722624644873,-500.0,0.00016438,2]
[333908832,1722624644882,-862.98,0.00016438,2]
[333908833,1722624644892,-500.0,0.00016438,2]
[333908834,1722624644901,-500.0,0.00016438,2]
[333908835,1722624644911,-1442.59,0.00016438,2]
[333908836,1722624644920,-500.0,0.00016438,2]
[333908837,1722624644930,-500.0,0.00016438,2]
[333908838,1722624644939,-1041.55,0.00016438,2]
[333908839,1722624644949,-500.0,0.00016438,2]
[333908840,1722624644958,-500.0,0.00016438,2]
[333908841,1722624644967,-1121.43,0.00016438,2]
[333908842,1722624644979,-662.47,0.00016438,2]
[333908843,1722624644989,-500.0,0.00016438,2]
[333908844,1722624644998,-1717.69,0.00016438,2]
[333908845,1722624645009,-558.79,0.00016438,2]
[333908846,1722624645019,-500.0,0.00016438,2]
[333908847,1722624645311,-500.0,0.00016438,2]
[333908848,1722624645323,-500.0,0.00016438,2]
[333908849,1722624645332,-2560.19,0.00016438,2]
[333908850,1722624645342,-500.0,0.00016438,2]
[333908851,1722624645356,-953.13,0.00016438,2]
[333908852,1722624645366,-858.29,0.00016438,2]
[333908853,1722624645375,-536.46,0.00016438,2]
[333908854,1722624645385,-500.0,0.00016438,2]
[333908855,1722624645396,-2375.51,0.00016438,2]
[333908856,1722624645406,-500.0,0.00016438,2]
[333908857,1722624645415,-594.59,0.00016438,2]
[333908858,1722624645426,-500.0,0.00016438,2]
[333908859,1722624645436,-344.88586007,0.00016438,2]
[333908860,1722624645445,-1229.45,0.00016438,2]
[333908861,1722624645455,-500.0,0.00016438,2]
[333908862,1722624645465,-500.0,0.00016438,2]
[333908863,1722624645475,-747.31,0.00016438,2]
[333908864,1722624645484,-1116.3,0.00016438,2]